bitfinex-derivatives/quotes_ETHF0:USTF0_20240910
["timestamp","ask_amount","ask_price","bid_price","bid_amount"]
[1725979986803,4.144,2334.8,2334.5,0.42832]
[1725979986999,5.16898325,2334.4,2334.3,0.42837]
[1725979987203,5.16898325,2334.4,2334.3,0.6403739]
[1725979987399,0.7761,2334.7,2334.6,0.42831]
[1725979987699,11.94508325,2334.7,2334.6,0.42831]
[1725979988002,11.94508325,2334.7,2334.3,0.2120039]
[1725979988297,5.16898325,2334.4,2334.3,0.42836]
[1725979988498,11.16898325,2334.4,2334.3,0.42836]
[1725979989196,5.16898325,2334.4,2334.3,0.42836]
[1725979991400,0.7761,2334.7,2334.6,0.42831]
[1725979991705,6.7761,2334.7,2334.6,0.42831]
[1725979991893,11.94508325,2334.7,2334.6,0.42831]
[1725979992294,11.94508325,2334.7,2334.5,0.42832]
[1725979992500,5.16898325,2334.4,2334.3,0.42837]
[1725979992700,5.16898325,2334.4,2334.3,1.4993]
[1725979992897,0.7761,2334.7,2334.6,0.42831]
[1725979993106,5.55428325,2334.7,2334.6,0.42831]
[1725979993996,0.3661,2334.9,2334.8,0.42828]
[1725979994196,11.53508325,2334.9,2334.8,0.42828]
[1725979994597,11.53508325,2334.9,2334.7,0.42829]
[1725979994805,6.3661,2334.9,2334.8,0.42828]
[1725979995206,11.53508325,2334.9,2334.8,0.42828]
[1725979995501,0.42828,2334.8,2334.4,0.42835]
[1725979995705,5.16898325,2334.5,2334.4,0.42835]
[1725979996210,11.16898325,2334.5,2334.4,0.42835]
[1725979997202,11.16898325,2334.5,2334.1,42.42959114]
[1725979997203,11.16898325,2334.5,2334.1,41.012564]
[1725979997506,0.3661,2334.9,2334.3,1.07093]
[1725979997700,11.53508325,2334.9,2334.8,0.42828]
[1725979998210,5.53508325,2334.9,2334.8,0.42828]
[1725979998406,0.3661,2334.9,2334.8,1.49898]
[1725979999003,0.3661,2334.9,2334.8,0.42828]
[1725980000211,0.42817,2335.4,2335.0,0.42822]
[1725980000407,5.16898325,2335.0,2334.9,0.42826]
[1725980000607,6.0,2335.4,2335.2,0.42819]
[1725980000815,5.16898325,2335.3,2335.2,0.42819]
[1725980001317,1.1808,2335.6,2335.5,0.42815]
[1725980001609,4.144,2336.2,2335.2,3.3]
[1725980001810,4.144,2336.2,2335.4,0.42817]
[1725980001811,5.16898325,2335.5,2335.4,0.42817]
[1725980002004,5.16898325,2335.5,2335.4,0.64319266]
[1725980002211,5.16898325,2335.5,2335.4,41.44319266]
[1725980002715,0.42806,2336.0,2335.6,0.42813]
[1725980003011,5.16898325,2335.7,2335.6,0.42813]
[1725980003212,5.16898325,2335.7,2335.4,41.01502266]
[1725980003213,5.16898325,2335.7,2335.4,41.44318266]
[1725980003415,5.16898325,2335.5,2335.4,0.21502266]
[1725980003810,11.16898325,2335.5,2335.3,0.42818]
[1725980004113,5.94818325,2335.4,2335.3,0.42818]
[1725980004316,6.33058325,2335.4,2335.2,0.4282]
[1725980004616,5.16898325,2335.0,2334.9,0.42826]
[1725980004821,5.16898325,2335.0,2334.7,0.35864868]
[1725980004822,7.1616,2335.4,2335.1,0.42821]
[1725980005014,7.58977,2335.4,2335.0,0.42823]
[1725980005211,5.16898325,2335.1,2335.0,0.42823]
[1725980005417,5.16898325,2335.1,2334.6,3.3]
[1725980005611,5.16898325,2335.1,2335.0,0.42824]
[1725980005612,6.0,2335.1,2335.0,0.42824]
[1725980005811,6.0,2335.1,2334.9,0.42825]
[1725980006307,5.16898325,2335.0,2334.9,0.42825]
[1725980006509,5.16898325,2335.0,2334.8,0.42826]
[1725980006707,6.0,2335.0,2334.9,0.42826]
[1725980007115,11.16898325,2335.0,2334.5,40.8]
[1725980007319,5.16898325,2334.8,2334.7,0.42829]
[1725980009117,1.58978,2335.4,2335.1,0.42822]
[1725980009318,7.58978,2335.4,2335.1,0.42822]
[1725980009511,5.16898325,2335.2,2335.0,0.42823]
[1725980009716,6.0,2335.2,2335.0,0.42823]
[1725980009910,5.16898325,2335.1,2335.0,0.42823]
[1725980010116,11.16898325,2335.1,2335.0,0.42823]
[1725980010420,5.16898325,2335.1,2335.0,0.42823]
[1725980011724,5.16898325,2335.1,2335.0,1.49884]
[1725980012626,5.16898325,2335.1,2335.0,0.42823]
[1725980013023,1.1616,2335.4,2335.3,0.42818]
[1725980013324,6.7792,2335.4,2335.3,0.64128773]
[1725980013521,11.94818325,2335.4,2335.3,0.64128773]
[1725980013720,0.3976,2335.8,2335.7,0.42811]
[1725980013921,6.3976,2335.8,2335.7,0.42811]
[1725980014119,11.56658325,2335.8,2335.7,0.42811]
[1725980014318,5.16898325,2335.8,2335.7,0.42811]
[1725980014923,11.59708325,2335.8,2335.5,0.42814]
[1725980015120,5.16898325,2335.4,2335.1,8.55655]
[1725980015317,5.16898325,2335.4,2335.3,0.42818]
[1725980015523,5.16898325,2335.4,2335.3,0.63788049]
[1725980016416,11.59716325,2335.4,2334.6,4.186]
[1725980016715,11.59716325,2335.4,2334.5,3.3]
[1725980016716,0.7781,2335.3,2334.5,3.3]
[1725980016930,11.94708325,2335.3,2335.2,0.4282]
[1725980017128,6.7781,2335.3,2335.2,0.4282]
[1725980017428,11.94708325,2335.3,2335.2,0.4282]
[1725980019127,11.94708325,2335.3,2335.0,0.42823]
[1725980019325,5.16898325,2334.9,2334.6,4.186]
[1725980019628,5.16898325,2334.9,2334.5,3.3]
[1725980020128,5.16898325,2334.9,2334.8,0.42828]
[1725980020326,5.16898325,2334.8,2334.7,2.67]
[1725980020521,5.16898325,2334.8,2334.7,0.42829]
[1725980020720,11.16898325,2334.8,2334.7,3.09829]
[1725980021531,5.16898325,2334.8,2334.7,3.09829]
[1725980021732,0.3984,2335.1,2334.9,0.42824]
[1725980022032,5.16898325,2335.0,2334.8,0.42826]
[1725980022223,5.16898325,2334.9,2334.8,0.42826]
[1725980022428,11.16898325,2334.9,2334.8,0.42826]
[1725980023527,5.16898325,2334.9,2334.8,0.42826]
[1725980025426,11.16898325,2334.9,2334.8,0.42826]
[1725980026017,5.16898325,2334.9,2334.8,0.42826]
[1725980026422,0.7781,2335.3,2335.2,0.4282]
[1725980026618,5.94708325,2335.3,2335.2,0.4282]
[1725980027023,11.94708325,2335.3,2335.2,0.4282]
[1725980029636,0.3921,2335.7,2335.6,0.42813]
[1725980029831,5.55848325,2335.7,2335.6,3.09813]
[1725980030336,5.55848325,2335.7,2335.6,45.67489341]
[1725980030736,5.55848325,2335.7,2335.6,44.07547376]
[1725980030937,5.55848325,2335.7,2335.6,43.00489341]
[1725980031131,5.55848325,2335.7,2335.6,44.07548177]
[1725980031626,5.55848325,2335.7,2335.6,2.84735177]
[1725980031828,11.55848325,2335.7,2335.6,1.09725779]
[1725980032030,5.55848325,2335.7,2335.6,1.09725779]
[1725980032239,5.55848325,2335.7,2335.6,45.20183588]
[1725980032538,5.55848325,2335.7,2335.6,44.07550034]
[1725980033135,11.55848325,2335.7,2335.6,41.89725779]
[1725980034441,11.55848325,2335.7,2335.6,42.96792493]
[1725980034734,11.55848325,2335.7,2335.6,41.8972825]
[1725980036143,11.55848325,2335.7,2335.6,1.0972825]
[1725980036541,11.98659325,2335.7,2335.6,0.0604525]
[1725980036845,11.55848325,2335.7,2335.6,0.42813]
[1725980037037,11.55848325,2335.7,2335.5,1.31782721]
[1725980037345,5.16898325,2335.6,2335.5,1.31782721]
[1725980037543,5.16898325,2335.6,2335.3,1.53578951]
[1725980037741,5.16898325,2335.4,2335.3,0.42818]
[1725980037944,5.16898325,2335.4,2335.3,0.6398934]
[1725980038248,5.16898325,2335.4,2335.3,2.81828234]
[1725980038442,5.16898325,2335.4,2335.3,1.74751291]
[1725980038746,0.3729,2335.5,2335.4,0.42817]
[1725980038944,5.54188325,2335.5,2335.4,1.54724884]
[1725980039143,5.54188325,2335.5,2335.4,1.11907884]
[1725980039465,11.54188325,2335.5,2335.3,0.6398934]
[1725980039638,5.56238325,2335.4,2335.3,0.6398934]
[1725980039840,11.56238325,2335.4,2335.3,0.6398934]
[1725980040346,5.16898325,2335.4,2335.3,3.95671553]
[1725980040543,5.16898325,2335.4,2335.3,2.8296888]
[1725980040743,5.16898325,2335.4,2335.3,3.95675343]
[1725980040941,5.16898325,2335.4,2335.3,1.75897224]
[1725980041350,5.16898325,2335.4,2335.3,2.82977943]
[1725980041646,5.16898325,2335.4,2335.3,3.95694845]
[1725980041842,5.16898325,2335.4,2335.3,2.82977943]
[1725980042648,5.16898325,2335.4,2335.3,2.18988603]
[1725980042649,11.59715325,2335.4,2335.3,2.18988603]
[1725980042849,19.83898325,2335.4,2335.0,1.64598346]
[1725980043151,19.83898325,2335.4,2334.9,2.1862522]
[1725980043152,5.59722325,2335.0,2334.9,2.1862522]
[1725980043341,5.59722325,2335.0,2334.8,1.11984524]
[1725980043540,5.54358325,2334.9,2334.8,1.11984524]
[1725980043847,5.54358325,2334.9,2334.8,0.42828]
[1725980044148,11.54358325,2334.9,2334.8,1.54812524]
[1725980044348,11.97184325,2334.9,2334.7,1.11984524]
[1725980044537,5.16898325,2334.8,2334.7,1.54813524]
[1725980044739,5.16898325,2334.8,2334.7,2.61918797]
[1725980044936,11.59726325,2334.8,2334.7,2.19089797]
[1725980045143,0.42829,2334.7,2334.6,1.11984524]
[1725980045446,11.16898325,2334.7,2334.6,0.42831]
[1725980046039,11.16898325,2334.7,2334.6,1.54815524]
[1725980046441,11.16898325,2334.7,2334.6,0.42831]
[1725980046937,11.16898325,2334.7,2334.6,1.54815524]
[1725980047241,11.16898325,2334.7,2334.5,1.64598346]
[1725980047242,11.59729325,2334.7,2334.5,1.11984524]
[1725980047449,5.16898325,2334.6,2334.4,1.11984524]
[1725980047748,5.16898325,2334.5,2334.4,0.42835]
[1725980048139,11.16898325,2334.5,2334.4,0.42835]
[1725980048547,5.16898325,2334.5,2334.4,5.96003581]
[1725980048745,5.16898325,2334.5,2334.4,7.60601927]
[1725980049442,0.7794,2334.9,2334.8,0.42828]
[1725980049641,6.7794,2334.9,2334.8,0.42828]
[1725980049843,11.94838325,2334.9,2334.7,0.42828]
[1725980050052,6.7794,2334.9,2334.7,0.42828]
[1725980050256,5.16898325,2334.8,2334.7,0.42828]
[1725980050442,5.16898325,2334.8,2334.7,1.09769074]
[1725980050637,11.16898325,2334.8,2334.7,0.42828]
[1725980050937,11.16898325,2334.8,2334.7,1.09769196]
[1725980051144,11.16898325,2334.8,2334.6,0.4283]
[1725980051340,5.16898325,2334.7,2334.6,0.4283]
[1725980051547,5.16898325,2334.8,2334.7,0.42829]
[1725980051855,0.3746,2334.9,2334.8,0.42828]
[1725980052145,11.16898325,2334.9,2334.8,4.88689748]
[1725980052357,5.16898325,2334.9,2334.8,4.88689748]
[1725980052849,11.16898325,2334.9,2334.8,1.78861748]
[1725980053055,11.16898325,2334.9,2334.7,0.42828]
[1725980053251,5.16898325,2334.8,2334.7,0.42828]
[1725980053451,5.16898325,2334.8,2334.7,1.09767964]
[1725980053652,11.16898325,2334.8,2334.7,1.09767964]
[1725980053859,11.16898325,2334.8,2334.7,2.21685778]
[1725980054158,11.16898325,2334.8,2334.7,0.42828]
[1725980054466,11.16898325,2334.8,2334.7,2.21685149]
[1725980054650,11.16898325,2334.8,2334.7,3.28784844]
[1725980054954,5.16898325,2334.8,2334.7,5.47903415]
[1725980055141,1.10257564,2335.6,2334.8,1.0707]
[1725980055346,6.3993,2335.6,2335.5,0.42815]
[1725980055544,6.3993,2335.6,2335.4,0.64415623]
[1725980055745,5.16898325,2335.4,2335.3,0.42818]
[1725980055946,5.16898325,2335.4,2335.3,0.63775032]
[1725980056150,11.16898325,2335.4,2335.3,0.63775032]
[1725980056654,11.16898325,2335.4,2335.3,0.6446903]
[1725980056851,11.16898325,2335.4,2335.0,1.11902761]
[1725980057059,5.16898325,2335.1,2335.0,1.54726761]
[1725980057356,11.16898325,2335.4,2335.3,0.42818]
[1725980057555,5.16898325,2335.4,2335.3,0.64543999]
[1725980058858,1.10257564,2336.0,2335.8,0.42808]
[1725980059155,1.10257564,2336.0,2335.6,0.42813]
[1725980059156,5.16898325,2335.7,2335.6,0.42813]
[1725980059361,5.16898325,2335.7,2335.6,45.76686603]
[1725980059653,5.16898325,2335.7,2335.6,45.76553561]
[1725980060253,0.3932,2336.1,2336.0,0.42806]
[1725980060455,11.56218325,2336.1,2336.0,0.42806]
[1725980060657,5.56218325,2336.1,2336.0,0.42806]
[1725980061064,5.16898325,2336.1,2336.0,0.42806]
[1725980061256,5.16898325,2336.1,2336.0,1.09706541]
[1725980061561,0.7972,2336.5,2336.2,0.42801]
[1725980061759,5.16898325,2336.3,2336.0,0.42806]
[1725980061981,5.16898325,2336.2,2336.0,0.42806]
[1725980063059,5.16898325,2336.1,2335.9,1.11839323]
[1725980063258,5.16898325,2336.0,2335.9,1.11839323]
[1725980063457,5.16898325,2336.0,2335.9,3.09807]
[1725980063658,11.16898325,2336.0,2335.9,3.09807]
[1725980063963,5.16898325,2336.0,2335.9,3.76708851]
[1725980064552,5.16898325,2336.0,2335.9,3.09807]
[1725980064759,0.7972,2336.5,2336.2,0.42801]
[1725980065060,6.7972,2336.5,2336.3,0.428]
[1725980065468,5.16898325,2336.4,2336.2,0.42801]
[1725980065763,6.7972,2336.5,2336.2,0.42801]
[1725980065959,5.16898325,2336.3,2336.1,2.67]
[1725980066158,5.16898325,2336.2,2336.1,3.09804]
[1725980066655,0.7972,2336.5,2336.1,2.67]
[1725980066854,5.16898325,2336.3,2336.2,0.42802]
[1725980068670,11.16898325,2336.3,2336.2,0.42802]
[1725980069055,5.16898325,2336.3,2336.2,0.42802]
[1725980069476,11.16898325,2336.3,2336.1,2.67]
[1725980069664,5.16898325,2336.2,2335.9,2.67]
[1725980069863,5.16898325,2336.1,2335.9,2.67]
[1725980070058,5.16898325,2336.1,2336.0,0.42806]
[1725980072362,0.7972,2336.5,2336.3,0.42799]
[1725980072673,6.7972,2336.5,2336.3,0.42799]
[1725980072865,5.16898325,2336.4,2336.3,0.42799]
[1725980073364,11.16898325,2336.4,2336.2,0.42801]
[1725980073676,5.16898325,2336.2,2336.0,2.67]
[1725980073864,5.16898325,2336.2,2336.1,0.42804]
[1725980074567,5.16898325,2336.2,2336.0,3.09804]
[1725980074765,5.16898325,2336.1,2336.0,0.42806]
[1725980075266,11.16898325,2336.1,2336.0,0.42806]
[1725980077066,11.16898325,2336.1,2336.0,3.09806]
[1725980078964,11.16898325,2336.1,2335.6,5.41815495]
[1725980079155,5.16898325,2335.7,2335.6,2.10591623]
[1725980079355,5.16898325,2335.7,2335.6,4.77591623]
[1725980079558,11.16898325,2335.7,2335.6,4.77591623]
[1725980079763,11.16898325,2335.7,2335.6,4.34779623]
[1725980080070,11.16898325,2335.7,2335.5,0.42814]
[1725980080269,5.16898325,2335.6,2335.4,2.67]
[1725980080471,5.16898325,2335.5,2335.4,3.09817]
[1725980080964,11.16898325,2335.5,2335.4,3.09817]
[1725980081361,5.16898325,2335.5,2335.4,4.16859]
[1725980081664,0.3669,2335.9,2335.8,0.42809]
[1725980081871,6.3669,2335.9,2335.8,3.09809]
[1725980082069,11.53588325,2335.9,2335.8,3.09809]
[1725980084568,5.16898325,2335.9,2335.8,3.09809]
[1725980084968,0.3888,2336.4,2335.8,2.67]
[1725980085169,5.16898325,2336.0,2335.9,3.09807]
[1725980086471,11.16898325,2336.0,2335.9,3.09807]
[1725980086672,11.16898325,2336.0,2335.9,0.42807]
[1725980089071,17.16898325,2336.0,2335.4,1.11404747]
[1725980089271,5.16898325,2335.5,2335.4,4.21221747]
[1725980089580,1.55129,2335.9,2335.6,0.42812]
[1725980089775,5.16898325,2335.7,2335.6,3.09812]
[1725980090165,1.1232,2335.9,2335.8,0.42809]
[1725980090365,7.1232,2335.9,2335.8,0.42809]
[1725980090566,12.29218325,2335.9,2335.8,0.42809]
[1725980090963,12.29218325,2335.9,2335.7,0.4281]
[1725980091266,7.1232,2335.9,2335.8,0.42809]
[1725980091773,12.29218325,2335.9,2335.7,0.42811]
[1725980091966,7.1232,2335.9,2335.7,0.42811]
[1725980092169,5.16898325,2335.8,2335.7,0.42811]
[1725980092570,11.16898325,2335.8,2335.7,0.42811]
[1725980096179,11.16898325,2335.8,2335.6,2.67]
[1725980096180,11.16898325,2335.8,2335.6,3.09811]
[1725980096381,5.16898325,2335.7,2335.6,3.09813]
[1725980096982,11.16898325,2335.7,2335.6,3.09813]
[1725980097287,11.16898325,2335.7,2335.6,3.76727411]
[1725980098676,11.16898325,2335.7,2335.6,3.76725637]
[1725980099170,11.16898325,2335.7,2335.6,4.21217747]
[1725980099374,11.16898325,2335.7,2335.6,5.95190019]
[1725980099772,12.23926325,2335.7,2335.6,2.85377019]
[1725980099977,0.42815,2335.5,2335.4,1.11404747]
[1725980100281,5.16898325,2335.5,2335.4,0.66921713]
[1725980100471,5.16898325,2335.5,2335.4,0.88387446]
[1725980100472,11.16898325,2335.5,2335.4,0.88387446]
[1725980100670,11.16898325,2335.5,2335.4,3.98204446]
[1725980100874,1.1232,2335.9,2335.6,0.42811]
[1725980101069,1.1232,2335.9,2335.7,0.66921713]
[1725980101070,7.1232,2335.9,2335.7,0.66921713]
[1725980101270,7.1232,2335.9,2335.8,1.09730713]
[1725980101472,12.29218325,2335.9,2335.8,1.09730713]
[1725980102077,11.92688325,2335.9,2335.8,3.3346004]
[1725980102280,11.92688325,2335.9,2335.8,2.9065104]
[1725980102580,11.92688325,2335.9,2335.8,3.33538308]
[1725980103182,0.3995,2336.2,2336.1,0.42804]
[1725980103476,5.16898325,2336.2,2336.1,6.56543032]
[1725980103677,5.16898325,2336.2,2336.1,7.90340548]
[1725980103869,11.16898325,2336.2,2336.1,4.80531974]
[1725980104073,11.16898325,2336.2,2336.1,3.89538458]
[1725980104272,6.42802,2336.2,2336.1,2.90826947]
[1725980104470,6.42802,2336.2,2335.9,1.12115894]
[1725980104471,0.42806,2336.0,2335.9,1.12115894]
[1725980104680,4.2808,2336.0,2335.9,1.12115894]
[1725980104874,0.7776,2336.1,2335.9,2.21264905]
[1725980105082,0.7776,2336.1,2335.9,1.54921894]
[1725980105279,0.7776,2336.1,2335.9,1.12115894]
[1725980105585,0.7776,2336.1,2336.0,1.54921894]
[1725980105980,0.7776,2336.1,2336.0,3.20109792]
[1725980106380,0.3737,2336.1,2336.0,3.20109792]
[1725980106578,1.12092086,2336.4,2336.0,2.42153972]
[1725980106874,1.12092086,2336.6,2336.3,2.2423461]
[1725980107180,1.50911424,2337.2,2336.6,1.06987]
[1725980107377,0.3883,2337.2,2337.1,3.09785]
[1725980107575,0.3663,2337.3,2337.2,0.42784]
[1725980107981,0.3663,2337.3,2337.2,1.32763899]
[1725980108282,0.3663,2337.3,2337.2,1.33816854]
[1725980108482,0.3663,2337.3,2337.1,1.11905996]
[1725980108483,10.6447,2337.3,2337.1,1.11905996]
[1725980108678,4.6517,2337.2,2337.1,1.11905996]
[1725980109178,4.6517,2337.2,2336.9,0.21482702]
[1725980109378,0.3883,2337.1,2336.9,0.21482702]
[1725980109588,0.3883,2337.1,2336.9,0.64271702]
[1725980109982,0.3883,2337.1,2336.9,0.21482702]
[1725980110887,0.81616,2337.1,2336.9,0.21482702]
[1725980111070,0.81616,2337.1,2336.7,1.54660521]
[1725980111273,0.3883,2337.1,2336.7,1.11868521]
[1725980111472,0.3883,2337.1,2336.7,0.21465013]
[1725980111677,0.3883,2337.1,2337.0,3.09787]
[1725980111981,1.49411424,2337.2,2337.0,3.09787]
[1725980111982,0.3663,2337.3,2337.2,0.42784]
[1725980112185,1.87571424,2337.7,2337.4,0.4278]
[1725980112389,1.1534,2337.7,2337.1,4.15718521]
[1725980112686,1.1534,2337.7,2337.4,0.42779]
[1725980112882,1.1534,2337.7,2337.2,0.42782]
[1725980113074,1.58115,2337.7,2337.3,0.42782]
[1725980113487,1.1534,2337.7,2337.4,0.4278]
[1725980113882,1.58115,2337.7,2337.4,0.4278]
[1725980114085,1.1534,2337.7,2337.3,0.42781]
[1725980114283,1.1534,2337.7,2337.4,0.4278]
[1725980114590,1.58114,2337.7,2337.1,3.2576443]
[1725980114793,8.1018,2337.7,2337.1,0.2191443]
[1725980115090,0.4278,2337.5,2337.2,0.42783]
[1725980115390,0.4278,2337.5,2336.9,3.78868521]
[1725980115391,0.42783,2337.3,2337.0,0.42786]
[1725980115581,1.1471,2337.2,2336.9,2.67]
[1725980115785,1.57494,2337.2,2336.9,0.42788]
[1725980116182,1.57494,2337.2,2336.8,2.67]
[1725980116183,1.1471,2337.2,2336.8,2.88333595]
[1725980116384,1.57495,2337.2,2336.9,0.42788]
[1725980116577,1.57494,2337.2,2336.8,2.88333595]
[1725980116893,1.57494,2337.2,2336.9,0.42788]
[1725980117596,0.42786,2337.1,2336.8,3.31123595]
[1725980117783,1.1471,2337.2,2336.9,0.42789]
[1725980117784,1.57495,2337.2,2336.9,0.42789]
[1725980117976,0.42786,2337.1,2336.8,2.88333595]
[1725980118386,0.42788,2337.0,2336.8,2.88333595]
[1725980118894,0.42788,2337.0,2336.3,1.51488521]
[1725980118895,0.42797,2336.5,2336.3,2.18156597]
[1725980119081,0.7589,2336.4,2336.1,0.21669541]
[1725980119391,0.7589,2336.4,2336.3,0.428]
[1725980119596,0.7589,2336.4,2336.3,0.63771973]
[1725980120384,0.7589,2336.4,2336.3,0.20971973]
[1725980120592,11.46689,2336.4,2336.0,3.09805]
[1725980120895,1.18689,2336.4,2336.1,0.21162413]
[1725980121193,0.42807,2336.0,2335.6,1.11868521]
[1725980121391,17.45262184,2336.3,2335.7,0.42811]
[1725980121392,0.767,2335.9,2335.7,0.42811]
[1725980121587,0.3669,2335.9,2335.8,2.67]
[1725980121998,0.3669,2335.9,2335.4,41.91868521]
[1725980121999,0.3669,2335.9,2335.6,3.09811]
[1725980122187,0.3669,2335.9,2335.6,2.67]
[1725980122384,0.3669,2335.9,2335.6,3.09812]
[1725980123710,0.3669,2335.9,2335.6,2.67]
[1725980123711,0.79498,2335.9,2335.6,2.67]
[1725980123995,0.79498,2335.9,2335.2,1.49206232]
[1725980123996,5.0363,2335.8,2335.2,1.49206232]
[1725980124199,0.42812,2335.7,2335.3,0.42818]
[1725980124390,0.7547,2335.8,2335.5,0.42814]
[1725980124587,0.7547,2335.8,2335.3,2.67]
[1725980124588,1.1828,2335.8,2335.4,0.42816]
[1725980124792,0.42813,2335.6,2335.3,2.67]
[1725980125095,0.7547,2335.8,2335.3,3.09818]
[1725980125096,0.42812,2335.7,2335.3,3.09818]
[1725980125292,0.42813,2335.6,2335.2,0.4282]
[1725980125800,0.42812,2335.7,2335.4,0.42816]
[1725980125987,0.7547,2335.8,2335.3,2.67]
[1725980126189,1.1828,2335.8,2335.3,2.67]
[1725980126394,1.1828,2335.8,2335.4,0.42815]
[1725980126590,1.1828,2335.8,2335.3,3.09817]
[1725980126591,0.42811,2335.7,2335.3,3.09817]
[1725980126986,0.42814,2335.6,2335.1,43.47]
[1725980127192,0.42814,2335.6,2335.3,0.42818]
[1725980127393,4.2824,2335.6,2334.9,2.67]
[1725980127589,2.67,2335.5,2334.9,0.42825]
[1725980127803,0.42818,2335.4,2335.0,0.42823]
[1725980128096,0.82159,2335.3,2335.0,0.42823]
[1725980128297,0.3712,2335.2,2335.1,0.42822]
[1725980128505,0.3868,2335.4,2335.3,0.42818]
[1725980128796,0.3868,2335.4,2335.2,0.42819]
[1725980128998,0.3868,2335.4,2334.9,2.67]
[1725980128999,4.6692,2335.4,2334.9,2.67]
[1725980129197,0.81498,2335.4,2335.1,0.42822]
[1725980129387,0.81498,2335.4,2335.0,0.42823]
[1725980129388,0.42819,2335.3,2335.0,0.42823]
[1725980129793,0.42822,2335.2,2334.9,3.09825]
[1725980129996,0.42823,2335.1,2334.9,2.67]
[1725980130205,5.09493,2335.1,2334.8,0.64457416]
[1725980130389,5.09493,2335.1,2334.9,0.42825]
[1725980130390,0.81252,2335.1,2334.9,0.42825]
[1725980130589,0.3843,2335.1,2334.9,0.42825]
[1725980131099,0.3868,2335.4,2335.2,0.42819]
[1725980131306,0.81497,2335.4,2335.2,0.42819]
[1725980131598,4.144,2335.6,2335.2,2.67]
[1725980131805,0.7578,2335.7,2335.5,0.42814]
[1725980131993,1.18592,2335.7,2335.5,0.42814]
[1725980132195,0.42816,2335.5,2335.2,0.82349]
[1725980132696,0.42816,2335.5,2335.3,0.42818]
[1725980132892,0.42816,2335.5,2335.2,1.03248901]
[1725980133103,4.71057,2335.4,2335.1,0.42821]
[1725980133398,0.42817,2335.4,2335.1,0.42821]
[1725980133602,0.42817,2335.4,2335.1,0.42822]
[1725980133904,0.42818,2335.4,2335.1,0.42822]
[1725980134100,0.42815,2335.5,2335.1,2.67]
[1725980134299,0.42814,2335.6,2335.4,0.42816]
[1725980134503,0.42815,2335.5,2335.1,2.67]
[1725980134805,0.42816,2335.5,2335.2,0.42819]
[1725980135005,4.2824,2335.4,2335.0,0.21308947]
[1725980135300,0.42819,2335.3,2335.1,0.42822]
[1725980135507,1.07033,2335.6,2334.9,2.67]
[1725980135508,1.07038,2335.5,2334.9,2.67]
[1725980135698,0.42817,2335.4,2335.1,0.4282]
[1725980135899,0.4282,2335.3,2335.0,0.42823]
[1725980136096,0.3719,2335.3,2335.0,0.21070171]
[1725980136401,0.42825,2335.0,2334.8,0.42827]
[1725980136601,0.42825,2335.0,2334.8,0.64582519]
[1725980136805,4.71146,2334.9,2334.5,2.67]
[1725980137011,0.42826,2334.9,2334.5,3.0422]
[1725980137204,0.3994,2335.1,2334.7,0.42829]
[1725980137409,0.42827,2334.9,2334.7,0.42829]
[1725980138303,0.42826,2335.0,2334.7,0.42829]
[1725980138798,0.42826,2334.9,2334.7,0.42829]
[1725980139003,0.42827,2334.9,2334.6,0.42831]
[1725980139403,0.42827,2334.9,2334.7,0.42829]
[1725980139597,0.42831,2334.6,2334.4,0.42834]
[1725980139797,0.4283,2334.7,2334.5,0.42833]
[1725980141002,0.42832,2334.6,2334.4,0.42834]
[1725980141205,0.42831,2334.7,2334.5,0.42833]
[1725980141902,0.83319,2334.8,2334.3,2.67]
[1725980142106,0.42828,2334.8,2334.3,2.67]
[1725980142407,0.42828,2334.8,2334.6,0.42831]
[1725980142809,0.42828,2334.8,2334.6,41.22831]
[1725980143003,0.3855,2335.0,2334.6,41.22831]
[1725980143004,0.42827,2334.9,2334.6,0.42831]
[1725980143203,0.42828,2334.8,2334.6,0.42831]
[1725980143406,0.42828,2334.8,2334.6,40.8]
[1725980143698,0.42828,2334.8,2334.1,3.62026087]
[1725980143699,4.2832,2334.7,2334.1,3.62026087]
[1725980143903,0.3977,2334.7,2334.1,3.62026087]
[1725980144103,0.3794,2334.6,2334.5,0.42833]
[1725980144309,0.42833,2334.5,2334.4,0.42834]
[1725980144523,0.80772,2334.6,2334.4,0.42834]
[1725980144707,0.42833,2334.5,2334.4,0.42834]
[1725980144903,0.80772,2334.6,2334.4,0.42834]
[1725980145308,0.80772,2334.6,2334.5,0.42833]
[1725980145510,0.80772,2334.6,2334.4,0.42834]
[1725980146718,0.80771,2334.6,2334.5,0.42833]
[1725980146908,0.3794,2334.6,2334.5,0.42833]
[1725980147105,4.6626,2334.6,2334.4,0.42834]
[1725980147300,0.42833,2334.5,2334.4,0.42834]
[1725980147608,0.3794,2334.6,2334.3,0.42836]
[1725980147609,0.42836,2334.4,2334.3,0.42836]
[1725980147907,0.80771,2334.6,2334.5,0.42833]
[1725980148116,5.09091,2334.6,2334.5,0.42833]
[1725980148614,0.3794,2334.6,2334.5,0.42833]
[1725980148815,0.80771,2334.6,2334.5,0.42833]
[1725980149401,0.42833,2334.5,2334.4,0.42834]
[1725980149610,0.80773,2334.6,2334.5,0.42833]
[1725980150117,0.42834,2334.5,2334.4,0.42834]
[1725980150416,0.80772,2334.6,2334.5,0.42833]
[1725980150616,0.80772,2334.6,2334.1,4.34921556]
[1725980150617,0.42834,2334.5,2334.4,0.42834]
[1725980150820,0.826,2334.7,2334.6,0.42831]
[1725980151007,0.42827,2334.9,2334.4,1.07088]
[1725980151315,0.42827,2334.9,2334.8,0.42828]
[1725980151521,0.42828,2334.8,2334.7,0.42828]
[1725980151708,0.7744,2335.1,2334.9,0.42826]
[1725980151908,0.42826,2334.9,2334.8,0.42826]
[1725980152907,0.42825,2335.0,2334.9,0.42826]
[1725980153112,0.42826,2334.9,2334.8,0.42826]
[1725980153314,0.42825,2335.0,2334.8,0.42826]
[1725980153706,0.42825,2335.0,2334.6,0.3969]
[1725980153906,0.42825,2335.0,2334.8,0.42826]
[1725980154117,0.7744,2335.1,2334.8,0.42826]